[Event "48th Indian U15-ch Open 2023"]
[Site "Jalgaon"]
[Date "2024.01.01"]
[Round "8.9"]
[White "Vatsal Singla"]
[Black "Pavan Karthikeya Varma Gunturi"]
[Result "1-0"]
[ECO "C95"]
[WhiteElo "1714"]
[BlackElo "1538"]
[Annotator "NA RC COMBH"]
[PlyCount "78"]
[EventDate "2023.12.30"]
[EventType "swiss"]
[EventCountry "IND"]
[SourceTitle "playchess.com"]
[Source "ChessBase"]
[SourceQuality "1"]
[TimeControl "5400+30"]

1. e4 {[%emt 0:00:12]} e5 {[%emt 0:00:03]} 2. Nf3 {[%emt 0:00:05]} Nc6 {[%emt 0:00:06]} 3. Bb5 {[%emt 0:00:05]} a6 {[%emt 0:00:08]} 4. Ba4 {[%emt 0:00:02]} Nf6 {[%emt 0:00:11]} 5. O-O {[%emt 0:00:50]} Be7 {[%emt 0:01:50]} 6. Re1 {[%emt 0:00:08]} b5 {[%emt 0:00:04]} 7. Bb3 {[%emt 0:00:02]} d6 {[%emt 0:00:11]} 8. c3 {[%emt 0:00:05]} O-O {[%emt 0:00:52]} 9. h3 {[%emt 0:00:32]} Nb8 {[%emt 0:02:01]} 10. d4 {[%emt 0:00:11]} Nbd7 {[%emt 0:00:46]} 11. Nbd2 {[%emt 0:00:14]} Bb7 {[%emt 0:01:32]} 12. Bc2 {[%emt 0:01:14]} Re8 {[%emt 0:02:44]} 13. Nf1 {[%emt 0:00:44]} Bf8 {[%emt 0:00:54]} 14. Ng3 {[%emt 0:00:08]} g6 {[%emt 0:01:45]} 15. a4 {[%emt 0:00:45]} Bg7 {[%emt 0:04:16]} 16. Bd3 {[%emt 0:00:44]} d5 {[%emt 0:06:54]} 17. exd5 {[%emt 0:12:23]} exd4 {[%emt 0:13:00]} 18. cxd4 {[%emt 0:20:09]} bxa4 {[%emt 0:04:50]} 19. Rxe8+ {[%emt 0:02:13]} Qxe8 {[%emt 0:00:31]} 20. Qxa4 {[%emt 0:01:42]} Nxd5 {[%emt 0:13:45]} 21. Ne4 {[%emt 0:02:09]} Qe6 {[%emt 0:15:55]} 22. Bd2 {[%emt 0:04:57]} N5b6 {[%emt 0:04:45]} 23. Qc2 {[%emt 0:01:12]} Qc6 {[%emt 0:05:53]} 24. Qxc6 {[%emt 0:05:12]} Bxc6 {[%emt 0:00:03]} 25. Rc1 {[%emt 0:00:16]} Bxe4 {[%emt 0:08:25]} 26. Bxe4 {[%emt 0:00:12]} Ra7 {[%emt 0:00:29]} 27. Ba5 {[%emt 0:10:53]} Bf8 {[%emt 0:04:13]} 28. Rc6 {[%emt 0:02:01]} Rb7 {[%emt 0:02:02]} 29. Rxg6+ {[%emt 0:00:59]} hxg6 {[%emt 0:01:04]} 30. Bxb7 {[%emt 0:00:07]} Nc4 {[%emt 0:02:08]} 31. Bxc7 {[%emt 0:00:49]} Nxb2 {[%emt 0:00:18]} 32. Bxa6 {[%emt 0:00:05]} Na4 {[%emt 0:00:23]} 33. Bb5 {[%emt 0:00:23]} Nab6 {[%emt 0:00:44]} 34. Bd8 {[%emt 0:03:21]} Bg7 {[%emt 0:01:34]} 35. Ne5 {[%emt 0:00:13]} Bf6 {[%emt 0:01:02]} 36. Bc7 {[%emt 0:02:25]} Nxe5 {[%emt 0:01:03]} 37. Bxb6 {[%emt 0:00:26]} Nf3+ {[%emt 0:00:22]} 38. gxf3 {[%emt 0:00:08]} Kf8 {[%emt 0:00:04]} 39. Bc5+ {[%emt 0:00:08]} Be7 {[%emt 0:00:35]} 1-0

[Event "48th Indian U15-ch Open 2023"]
[Site "Jalgaon"]
[Date "2024.01.01"]
[Round "8.10"]
[White "Mokshith, Pasupulety"]
[Black "Agnivo, Chakraborty"]
[Result "1/2-1/2"]
[ECO "C58"]
[WhiteElo "1478"]
[BlackElo "1690"]
[Annotator "NA RC COMBH"]
[PlyCount "96"]
[EventDate "2023.12.30"]
[EventType "swiss"]
[EventCountry "IND"]
[SourceTitle "playchess.com"]
[Source "ChessBase"]
[SourceQuality "1"]
[TimeControl "5400+30"]

1. e4 {[%emt 0:00:55]} e5 {[%emt 0:00:04]} 2. Nf3 {[%emt 0:01:26]} Nc6 {[%emt 0:00:07]} 3. Bc4 {[%emt 0:00:32]} Nf6 {[%emt 0:00:09]} 4. Ng5 {[%emt 0:00:05]} d5 {[%emt 0:00:08]} 5. exd5 {[%emt 0:00:02]} Na5 {[%emt 0:00:08]} 6. Bb5+ {[%emt 0:00:03]} c6 {[%emt 0:00:07]} 7. dxc6 {[%emt 0:00:18]} bxc6 {[%emt 0:00:08]} 8. Bd3 {[%emt 0:01:10]} Bd6 {[%emt 0:01:20]} 9. Nc3 {[%emt 0:03:07]} Nd5 {[%emt 0:04:05]} 10. h4 {[%emt 0:13:36]} Nf4 {[%emt 0:05:47]} 11. Bf1 {[%emt 0:02:37]} h6 {[%emt 0:06:54]} 12. Nge4 {[%emt 0:01:39]} Be7 {[%emt 0:01:55]} 13. d3 {[%emt 0:05:14]} Ne6 {[%emt 0:02:24]} 14. g3 {[%emt 0:07:25]} O-O {[%emt 0:02:29]} 15. Nd2 {[%emt 0:09:29]} Nd4 {[%emt 0:04:46]} 16. Ne2 {[%emt 0:04:59]} Bg4 {[%emt 0:00:56]} 17. c3 {[%emt 0:00:58]} Nf3+ {[%emt 0:01:22]} 18. Nxf3 {[%emt 0:00:18]} Bxf3 {[%emt 0:00:05]} 19. Rh2 {[%emt 0:00:43]} Qd5 {[%emt 0:06:15]} 20. Qc2 {[%emt 0:02:32]} Rfd8 {[%emt 0:02:21]} 21. Be3 {[%emt 0:02:30]} Nb7 {[%emt 0:03:30]} 22. Ng1 {[%emt 0:02:07]} Bh5 {[%emt 0:01:47]} 23. Bg2 {[%emt 0:04:37]} Qd6 {[%emt 0:02:11]} 24. b4 {[%emt 0:08:05]} Bf6 {[%emt 0:06:41]} 25. Ne2 {[%emt 0:05:25]} a5 {[%emt 0:05:05]} 26. b5 {[%emt 0:00:26]} Nc5 {[%emt 0:00:17]} 27. Nc1 {[%emt 0:01:38]} cxb5 {[%emt 0:07:51]} 28. Bxc5 {[%emt 0:02:45]} Qxc5 {[%emt 0:00:22]} 29. Nb3 {[%emt 0:00:06]} Qc8 {[%emt 0:03:16]} 30. Bxa8 {[%emt 0:01:59]} Qxa8 {[%emt 0:00:06]} 31. Nd2 {[%emt 0:00:09]} Be7 {[%emt 0:01:15]} 32. Rb1 {[%emt 0:01:48]} Qc6 {[%emt 0:03:42]} 33. f3 {[%emt 0:01:39]} b4 {[%emt 0:00:58]} 34. Rc1 {[%emt 0:01:51]} bxc3 {[%emt 0:08:11]} 35. Qxc3 {[%emt 0:00:08]} Qb6 {[%emt 0:01:00]} 36. Ke2 {[%emt 0:02:02]} Bb4 {[%emt 0:02:05]} 37. Qc7 {[%emt 0:01:37]} Qd4 {[%emt 0:01:37]} 38. Qc4 {[%emt 0:00:16]} Qd7 {[%emt 0:00:04]} 39. Ne4 {[%emt 0:01:09]} Kh8 {[%emt 0:00:20]} 40. Nf2 {[%emt 0:02:55]} f5 {[%emt 0:00:27]} 41. Qc7 {[%emt 0:01:01]} Qd5 {[%emt 0:00:32]} 42. g4 {[%emt 0:00:48]} fxg4 {[%emt 0:00:05]} 43. fxg4 {[%emt 0:00:12]} Bg6 {[%emt 0:01:52]} 44. Qc4 {[%emt 0:00:19]} Qd7 {[%emt 0:00:28]} 45. Rc2 {[%emt 0:01:14]} h5 {[%emt 0:01:16]} 46. Qa6 {[%emt 0:02:32]} Kh7 {[%emt 0:00:32]} 47. Rc6 {[%emt 0:01:59]} Qf7 {[%emt 0:01:34]} 48. Qc4 {[%emt 0:00:37]} Qf4 {[%emt 0:05:27]} 1/2-1/2

[Event "48th Indian U15-ch Open 2023"]
[Site "Jalgaon"]
[Date "2024.02.02"]
[Round "9.1"]
[White "Jihan Tejas Shah"]
[Black "Bhoir Paras Dilip"]
[Result "1/2-1/2"]
[ECO "D31"]
[WhiteElo "1891"]
[BlackElo "1808"]
[Annotator "NA RC"]
[PlyCount "70"]
[EventDate "2023.12.30"]
[EventType "swiss"]
[EventCountry "IND"]
[SourceTitle "playchess.com"]
[Source "ChessBase"]
[SourceQuality "1"]
[TimeControl "5400+30"]

1. d4 {[%emt 0:00:31]} d5 {[%emt 0:00:09]} 2. c4 {[%emt 0:00:07]} e6 {[%emt 0:00:06]} 3. Nc3 {[%emt 0:00:06]} c6 {[%emt 0:00:03]} 4. e4 {[%emt 0:00:19]} dxe4 {[%emt 0:00:07]} 5. Nxe4 {[%emt 0:00:04]} Bb4+ {[%emt 0:00:04]} 6. Bd2 {[%emt 0:00:04]} Qxd4 {[%emt 0:00:05]} 7. Bxb4 {[%emt 0:00:02]} Qxe4+ {[%emt 0:00:09]} 8. Be2 {[%emt 0:00:02]} Na6 {[%emt 0:00:13]} 9. Ba5 {[%emt 0:00:34]} b6 {[%emt 0:00:07]} 10. Qd6 {[%emt 0:00:03]} Bd7 {[%emt 0:00:59]} 11. Bc3 {[%emt 0:00:25]} f6 {[%emt 0:00:36]} 12. Nf3 {[%emt 0:00:24]} Ne7 {[%emt 0:00:14]} 13. Nd2 {[%emt 0:04:09]} Qxg2 {[%emt 0:15:14]} 14. Bh5+ {[%emt 0:03:26]} Ng6 {[%emt 0:07:30]} 15. Bf3 {[%emt 0:02:09]} Qg5 {[%emt 0:04:07]} 16. Bxc6 {[%emt 0:03:59]} O-O-O {[%emt 0:02:34]} 17. Bf3 {[%emt 0:24:24]} Nc5 {[%emt 0:07:59]} 18. Ne4 {[%emt 0:00:29]} Nxe4 {[%emt 0:09:30]} 19. Bxe4 {[%emt 0:00:05]} Ba4 {[%emt 0:01:54]} 20. Qg3 {[%emt 0:03:26]} Qh4 {[%emt 0:08:09]} 21. Qxh4 {[%emt 0:02:09]} Nxh4 {[%emt 0:00:06]} 22. Rg1 {[%emt 0:00:32]} Ng6 {[%emt 0:04:26]} 23. b3 {[%emt 0:04:15]} Be8 {[%emt 0:03:46]} 24. Ke2 {[%emt 0:04:52]} e5 {[%emt 0:02:47]} 25. Ke3 {[%emt 0:00:46]} Bd7 {[%emt 0:03:50]} 26. Rad1 {[%emt 0:01:49]} Be6 {[%emt 0:01:02]} 27. Rxd8+ {[%emt 0:04:15]} Rxd8 {[%emt 0:00:06]} 28. Bb2 {[%emt 0:01:05]} f5 {[%emt 0:02:41]} 29. Bc2 {[%emt 0:01:05]} Rd7 {[%emt 0:04:52]} 30. Rg5 $11 {[%emt 0:02:04]} e4 {[%emt 0:02:09]} 31. Bc3 {[%emt 0:02:07]} Kc7 {[%emt 0:03:53]} 32. Rg1 {[%emt 0:01:11]} Re7 {[%emt 0:01:31]} 33. Bb4 {[%emt 0:02:45]} Rd7 {[%emt 0:01:06]} 34. Bc3 {[%emt 0:00:30]} Re7 {[%emt 0:00:09]} 35. Bb4 {[%emt 0:00:04]} Rd7 {[%emt 0:00:23]} 1/2-1/2

[Event "48th Indian U15-ch Open 2023"]
[Site "Jalgaon"]
[Date "2024.02.02"]
[Round "9.2"]
[White "Daksh Goyal"]
[Black "Madhvendra Pratap Sharma"]
[Result "1-0"]
[ECO "C18"]
[WhiteElo "1814"]
[BlackElo "1803"]
[Annotator "NA RC"]
[PlyCount "125"]
[EventDate "2023.12.30"]
[EventType "swiss"]
[EventCountry "IND"]
[SourceTitle "playchess.com"]
[Source "ChessBase"]
[SourceQuality "1"]
[TimeControl "5400+30"]

1. e4 {[%emt 0:04:02]} e6 {[%emt 0:00:10]} 2. d4 {[%emt 0:00:13]} d5 {[%emt 0:00:03]} 3. Nc3 {[%emt 0:00:13]} Bb4 {[%emt 0:00:05]} 4. e5 {[%emt 0:00:17]} c5 {[%emt 0:00:05]} 5. a3 {[%emt 0:00:11]} Bxc3+ {[%emt 0:00:29]} 6. bxc3 {[%emt 0:02:01]} Nc6 {[%emt 0:00:04]} 7. Ne2 {[%emt 0:15:58]} Qa5 {[%emt 0:02:18]} 8. Bd2 {[%emt 0:02:27]} Qa4 {[%emt 0:14:14]} 9. Be3 {[%emt 0:12:51]} Nge7 {[%emt 0:16:38]} 10. Ng3 {[%emt 0:04:16]} Qa5 {[%emt 0:12:44]} 11. Qd2 {[%emt 0:03:30]} cxd4 {[%emt 0:00:50]} 12. cxd4 {[%emt 0:01:02]} Qxd2+ {[%emt 0:01:10]} 13. Kxd2 {[%emt 0:10:00]} h5 {[%emt 0:09:44]} 14. h4 {[%emt 0:00:00]} Na5 {[%emt 0:09:23]} 15. Bd3 {[%emt 0:04:41]} b6 {[%emt 0:02:33]} 16. Ke2 {[%emt 0:06:25]} Bb7 {[%emt 0:03:40]} (16... f6 $11) 17. Bd2 $14 {[%emt 0:06:34]} Nec6 {[%emt 0:03:47]} 18. Ke3 {[%emt 0:01:37]} O-O-O {[%emt 0:02:13]} 19. Bc3 {[%emt 0:04:29]} Kb8 {[%emt 0:01:29]} 20. f3 {[%emt 0:02:04]} Nc4+ {[%emt 0:04:01]} 21. Kf2 {[%emt 0:00:26]} Ba6 {[%emt 0:00:49]} 22. Ne2 {[%emt 0:00:57]} Kb7 {[%emt 0:02:13]} 23. a4 {[%emt 0:05:09]} f6 {[%emt 0:04:29]} 24. Nf4 {[%emt 0:05:39]} fxe5 {[%emt 0:02:28]} 25. Nxe6 {[%emt 0:01:09]} Rd7 {[%emt 0:01:50]} 26. Rab1 {[%emt 0:03:07]} Ka8 {[%emt 0:00:37]} 27. dxe5 {[%emt 0:00:15]} Re8 {[%emt 0:01:52]} 28. Nf4 {[%emt 0:00:43]} N6xe5 {[%emt 0:01:11]} 29. Bxe5 {[%emt 0:01:45]} Rxe5 {[%emt 0:00:12]} 30. Rbe1 {[%emt 0:00:47]} Bc8 {[%emt 0:01:04]} 31. Bxc4 {[%emt 0:01:07]} Rxe1 {[%emt 0:00:06]} 32. Rxe1 {[%emt 0:01:25]} dxc4 {[%emt 0:00:02]} 33. Re8 {[%emt 0:00:36]} Kb7 {[%emt 0:00:22]} 34. Nxh5 {[%emt 0:00:38]} c3 {[%emt 0:00:59]} 35. Re3 {[%emt 0:02:58]} Rd2+ {[%emt 0:02:24]} 36. Re2 {[%emt 0:00:00]} g6 {[%emt 0:00:40]} 37. Ng3 {[%emt 0:00:00]} Rd4 {[%emt 0:00:35]} 38. Ne4 {[%emt 0:00:00]} Rxa4 {[%emt 0:00:18]} 39. g4 {[%emt 0:00:00]} Ra3 {[%emt 0:01:32]} 40. Nd6+ {[%emt 0:00:00]} Kc6 {[%emt 0:00:28]} 41. Nxc8 {[%emt 0:00:00]} b5 {[%emt 0:00:22]} 42. Ne7+ {[%emt 0:01:09]} Kc5 {[%emt 0:00:26]} 43. Nxg6 {[%emt 0:00:13]} b4 {[%emt 0:00:32]} 44. h5 {[%emt 0:00:25]} Ra6 {[%emt 0:00:22]} 45. Nf4 {[%emt 0:00:32]} Rd6 {[%emt 0:00:16]} 46. g5 {[%emt 0:00:38]} a5 {[%emt 0:00:52]} 47. h6 {[%emt 0:00:16]} a4 {[%emt 0:00:18]} 48. h7 {[%emt 0:00:14]} Rd2 {[%emt 0:00:19]} 49. h8=Q {[%emt 0:00:15]} a3 {[%emt 0:00:18]} 50. Rxd2 {[%emt 0:00:20]} cxd2 {[%emt 0:00:08]} 51. Ke2 {[%emt 0:00:14]} d1=Q+ {[%emt 0:00:08]} 52. Kxd1 {[%emt 0:00:03]} a2 {[%emt 0:00:08]} 53. Nd3+ {[%emt 0:00:12]} Kc4 {[%emt 0:00:13]} 54. Qg8+ {[%emt 0:00:08]} Kd4 {[%emt 0:00:06]} 55. Qxa2 {[%emt 0:00:09]} b3 {[%emt 0:00:10]} 56. cxb3 {[%emt 0:00:20]} Kd5 {[%emt 0:00:19]} 57. Qa4 {[%emt 0:00:18]} Ke6 {[%emt 0:00:04]} 58. Qb5 {[%emt 0:00:04]} Kf7 {[%emt 0:00:04]} 59. Qc6 {[%emt 0:00:05]} Kg7 {[%emt 0:00:04]} 60. Qf6+ {[%emt 0:00:07]} Kh7 {[%emt 0:00:04]} 61. Ne5 {[%emt 0:00:24]} Kg8 {[%emt 0:00:04]} 62. Qf7+ {[%emt 0:00:05]} Kh8 {[%emt 0:00:07]} 63. Ng6# {[%emt 0:00:05]} 1-0

[Event "48th Indian U15-ch Open 2023"]
[Site "Jalgaon"]
[Date "2024.02.02"]
[Round "9.3"]
[White "Md Imran"]
[Black "Jain, Kushagra"]
[Result "1/2-1/2"]
[ECO "A45"]
[WhiteElo "2174"]
[BlackElo "1804"]
[Annotator "RC"]
[PlyCount "91"]
[EventDate "2023.12.30"]
[EventType "swiss"]
[EventCountry "IND"]
[SourceTitle "playchess.com"]
[Source "ChessBase"]
[SourceQuality "1"]
[TimeControl "5400+30"]

1. d4 {[%emt 0:00:10]} Nf6 {[%emt 0:00:55]} 2. Bg5 {[%emt 0:01:52]} Ne4 {[%emt 0:04:24]} 3. Bf4 {[%emt 0:02:08]} c5 {[%emt 0:00:30]} 4. f3 {[%emt 0:00:07]} Nf6 {[%emt 0:02:01]} 5. dxc5 {[%emt 0:00:02]} Qa5+ {[%emt 0:03:44]} 6. Nc3 {[%emt 0:00:41]} Qxc5 {[%emt 0:01:03]} 7. Qd2 {[%emt 0:00:27]} d6 {[%emt 0:03:32]} 8. O-O-O {[%emt 0:00:19]} g6 {[%emt 0:01:48]} 9. e4 {[%emt 0:00:40]} Bd7 {[%emt 0:09:40]} 10. Be3 {[%emt 0:06:45]} Qa5 {[%emt 0:03:30]} 11. Nge2 {[%emt 0:02:06]} Bg7 {[%emt 0:01:14]} 12. Nd4 {[%emt 0:00:24]} Nc6 {[%emt 0:02:12]} 13. Nb3 {[%emt 0:02:02]} Qd8 {[%emt 0:01:59]} 14. Bh6 {[%emt 0:02:21]} Bxh6 {[%emt 0:14:28]} 15. Qxh6 {[%emt 0:00:06]} Qc7 {[%emt 0:03:25]} 16. Qg7 {[%emt 0:03:05]} Rf8 {[%emt 0:02:34]} 17. Nb5 {[%emt 0:00:54]} Qd8 {[%emt 0:02:16]} 18. Be2 {[%emt 0:12:20]} Rg8 {[%emt 0:09:08]} 19. Qh6 {[%emt 0:00:10]} g5 {[%emt 0:01:56]} 20. g4 {[%emt 0:00:17]} Rg6 {[%emt 0:02:18]} 21. Qh3 {[%emt 0:00:50]} Qb6 {[%emt 0:00:59]} 22. Qf1 {[%emt 0:03:21]} O-O-O {[%emt 0:02:54]} 23. N5d4 {[%emt 0:01:29]} Ne5 {[%emt 0:01:35]} 24. Kb1 {[%emt 0:00:40]} h5 {[%emt 0:02:00]} 25. f4 {[%emt 0:17:24]} Nexg4 {[%emt 0:11:09]} 26. Bxg4 {[%emt 0:00:14]} Bxg4 {[%emt 0:01:09]} 27. Qc4+ {[%emt 0:00:21]} Qc7 {[%emt 0:04:30]} 28. Qxf7 {[%emt 0:00:33]} Rgg8 {[%emt 0:01:29]} 29. Ne6 {[%emt 0:03:27]} Bxe6 {[%emt 0:01:30]} 30. Qxe6+ {[%emt 0:00:11]} Kb8 {[%emt 0:00:45]} 31. Rhf1 {[%emt 0:13:16]} gxf4 {[%emt 0:01:10]} 32. Rxf4 {[%emt 0:00:16]} Rg2 {[%emt 0:01:01]} 33. Nd4 {[%emt 0:00:09]} Rxh2 {[%emt 0:00:29]} 34. a3 {[%emt 0:01:42]} Rc8 {[%emt 0:01:28]} 35. Qb3 {[%emt 0:06:57]} d5 {[%emt 0:01:23]} 36. Qg3 {[%emt 0:02:05]} Rh3 {[%emt 0:01:34]} 37. Qxh3 {[%emt 0:00:40]} Qxf4 {[%emt 0:00:10]} 38. exd5 {[%emt 0:00:36]} Nxd5 {[%emt 0:00:45]} 39. Qxh5 {[%emt 0:02:13]} Ne3 {[%emt 0:00:24]} 40. Ne6 {[%emt 0:05:52]} Qc4 {[%emt 0:00:55]} 41. Qe5+ {[%emt 0:05:22]} Ka8 {[%emt 0:00:01]} 42. Nc7+ {[%emt 0:01:59]} Rxc7 {[%emt 0:00:21]} 43. Rd8+ {[%emt 0:00:01]} Rc8 {[%emt 0:00:10]} 44. Rxc8+ {[%emt 0:00:02]} Qxc8 {[%emt 0:00:01]} 45. Qxe3 {[%emt 0:00:01]} Qf5 {[%emt 0:01:33]} 46. Qd4 {[%emt 0:01:45]} 1/2-1/2

[Event "48th Indian U15-ch Open 2023"]
[Site "Jalgaon"]
[Date "2024.02.02"]
[Round "9.4"]
[White "Vatsal Singla"]
[Black "Vignesh Advaith Vemula"]
[Result "1-0"]
[ECO "B22"]
[WhiteElo "1714"]
[BlackElo "2028"]
[Annotator "RC"]
[PlyCount "83"]
[EventDate "2023.12.30"]
[EventType "swiss"]
[EventCountry "IND"]
[SourceTitle "playchess.com"]
[Source "ChessBase"]
[SourceQuality "1"]
[TimeControl "5400+30"]

1. e4 {[%emt 0:00:17]} c5 {[%emt 0:00:04]} 2. c3 {[%emt 0:00:08]} d5 {[%emt 0:01:56]} 3. exd5 {[%emt 0:00:13]} Qxd5 {[%emt 0:00:05]} 4. d4 {[%emt 0:00:09]} Nc6 {[%emt 0:00:04]} 5. Nf3 {[%emt 0:00:07]} Bf5 {[%emt 0:01:10]} 6. Be3 {[%emt 0:00:50]} Nf6 {[%emt 0:00:55]} 7. Na3 {[%emt 0:03:45]} cxd4 {[%emt 0:00:36]} 8. Bc4 {[%emt 0:00:33]} Qa5 {[%emt 0:00:19]} 9. Nxd4 {[%emt 0:00:20]} Nxd4 {[%emt 0:00:24]} 10. Bxd4 {[%emt 0:00:07]} e5 {[%emt 0:00:20]} 11. Bb5+ {[%emt 0:00:07]} Bd7 {[%emt 0:00:05]} 12. Bxd7+ {[%emt 0:00:17]} Nxd7 {[%emt 0:00:03]} 13. Nc4 {[%emt 0:00:11]} Qd5 {[%emt 0:00:06]} 14. Qe2 {[%emt 0:00:11]} f6 {[%emt 0:00:24]} 15. O-O {[%emt 0:08:53]} Be7 {[%emt 0:00:12]} 16. Be3 {[%emt 0:10:28]} O-O {[%emt 0:01:54]} 17. Rad1 {[%emt 0:01:39]} Qe6 {[%emt 0:00:05]} 18. Rd2 {[%emt 0:01:09]} Rfc8 {[%emt 0:06:48]} 19. Rfd1 {[%emt 0:02:28]} Nf8 {[%emt 0:00:12]} 20. Na5 {[%emt 0:11:46]} Qxa2 {[%emt 0:06:44]} 21. Nxb7 {[%emt 0:01:48]} Rab8 {[%emt 0:00:32]} 22. Nc5 {[%emt 0:00:46]} Bxc5 {[%emt 0:08:19]} 23. Bxc5 {[%emt 0:01:05]} Ne6 {[%emt 0:00:41]} 24. Ba3 {[%emt 0:09:11]} Qb3 {[%emt 0:04:08]} 25. h3 {[%emt 0:03:04]} Qa4 {[%emt 0:05:51]} 26. Rd6 {[%emt 0:02:46]} Qb3 {[%emt 0:05:49]} 27. Qg4 {[%emt 0:02:09]} Re8 {[%emt 0:01:07]} 28. Rd7 {[%emt 0:02:44]} Red8 {[%emt 0:19:14]} 29. Rxd8+ {[%emt 0:04:40]} Nxd8 {[%emt 0:00:09]} 30. Rd7 {[%emt 0:00:24]} Nf7 {[%emt 0:00:37]} 31. Rxa7 {[%emt 0:02:36]} Rd8 {[%emt 0:01:20]} 32. Rd7 {[%emt 0:00:14]} Rxd7 {[%emt 0:01:43]} 33. Qxd7 {[%emt 0:00:04]} h5 {[%emt 0:00:34]} 34. Qc8+ {[%emt 0:01:53]} Kh7 {[%emt 0:00:04]} 35. Qf5+ {[%emt 0:00:16]} Kh6 {[%emt 0:00:18]} 36. Bc5 {[%emt 0:03:56]} Qd1+ {[%emt 0:02:18]} 37. Kh2 {[%emt 0:00:26]} Qd8 {[%emt 0:00:08]} 38. Be3+ {[%emt 0:01:24]} g5 {[%emt 0:00:06]} 39. h4 {[%emt 0:01:44]} Qd6 {[%emt 0:00:09]} 40. b4 {[%emt 0:01:41]} e4+ {[%emt 0:06:51]} 41. g3 {[%emt 0:00:23]} Qe5 {[%emt 0:01:13]} 42. hxg5+ {[%emt 0:00:36]} 1-0

[Event "48th Indian U15-ch Open 2023"]
[Site "Jalgaon"]
[Date "2024.02.02"]
[Round "9.5"]
[White "Anirudh R"]
[Black "Bivor Adak"]
[Result "0-1"]
[ECO "A46"]
[WhiteElo "1621"]
[BlackElo "1791"]
[Annotator "NA RC"]
[PlyCount "48"]
[EventDate "2023.12.30"]
[EventType "swiss"]
[EventCountry "IND"]
[SourceTitle "playchess.com"]
[Source "ChessBase"]
[SourceQuality "1"]
[TimeControl "5400+30"]

1. d4 {[%emt 0:00:37]} Nf6 {[%emt 0:00:58]} 2. Nf3 {[%emt 0:00:22]} e6 {[%emt 0:01:33]} 3. Bf4 {[%emt 0:00:08]} c5 {[%emt 0:01:17]} 4. e3 {[%emt 0:00:42]} Nc6 {[%emt 0:02:44]} 5. Nbd2 {[%emt 0:00:44]} Be7 {[%emt 0:00:51]} 6. c3 {[%emt 0:01:38]} Nh5 {[%emt 0:04:00]} 7. dxc5 {[%emt 0:04:06]} Nxf4 {[%emt 0:00:18]} 8. exf4 {[%emt 0:00:04]} Bxc5 {[%emt 0:03:22]} 9. Ne4 {[%emt 0:01:37]} b6 {[%emt 0:00:35]} 10. Ne5 {[%emt 0:23:03]} Qc7 {[%emt 0:10:11]} 11. Qh5 {[%emt 0:08:23]} Nxe5 {[%emt 0:01:56]} 12. fxe5 {[%emt 0:00:03]} Bb7 {[%emt 0:00:58]} 13. Bd3 {[%emt 0:02:00]} Be7 {[%emt 0:10:33]} 14. f4 {[%emt 0:03:58]} g6 {[%emt 0:07:57]} 15. Qe2 {[%emt 0:01:19]} O-O {[%emt 0:09:18]} 16. O-O {[%emt 0:08:35]} d6 {[%emt 0:00:25]} 17. exd6 {[%emt 0:11:59]} Bxd6 {[%emt 0:00:08]} 18. g3 {[%emt 0:15:39]} Bc5+ {[%emt 0:01:21]} 19. Rf2 {[%emt 0:05:18]} Bxe4 {[%emt 0:00:50]} 20. Qxe4 {[%emt 0:00:42]} Bxf2+ {[%emt 0:00:19]} 21. Kxf2 {[%emt 0:00:02]} Qc5+ {[%emt 0:00:11]} 22. Ke2 {[%emt 0:00:32]} Rad8 {[%emt 0:00:06]} 23. Qe5 {[%emt 0:01:01]} Qxe5+ {[%emt 0:00:19]} 24. fxe5 {[%emt 0:00:02]} Rd5 {[%emt 0:00:10]} 0-1

[Event "48th Indian U15-ch Open 2023"]
[Site "Jalgaon"]
[Date "2024.02.02"]
[Round "9.6"]
[White "Agnivo Chakraborty"]
[Black "Mayank Chakraborty"]
[Result "1/2-1/2"]
[ECO "C55"]
[WhiteElo "1690"]
[BlackElo "2403"]
[Annotator "RC"]
[PlyCount "91"]
[EventDate "2023.12.30"]
[EventType "swiss"]
[EventCountry "IND"]
[SourceTitle "playchess.com"]
[Source "ChessBase"]
[SourceQuality "1"]
[TimeControl "5400+30"]

1. e4 {[%emt 0:00:02]} e5 {[%emt 0:00:03]} 2. Nf3 {[%emt 0:00:05]} Nc6 {[%emt 0:00:01]} 3. Bc4 {[%emt 0:00:08]} Nf6 {[%emt 0:00:04]} 4. d3 {[%emt 0:00:05]} h6 {[%emt 0:00:05]} 5. c3 {[%emt 0:00:09]} d6 {[%emt 0:00:20]} 6. Nbd2 {[%emt 0:00:07]} g5 {[%emt 0:01:48]} 7. Nf1 {[%emt 0:00:11]} Bg7 {[%emt 0:03:06]} 8. Ng3 {[%emt 0:10:04]} Ne7 {[%emt 0:07:52]} 9. d4 {[%emt 0:04:42]} exd4 {[%emt 0:01:10]} 10. Nxd4 {[%emt 0:02:27]} O-O {[%emt 0:04:22]} 11. O-O {[%emt 0:01:07]} Nxe4 {[%emt 0:07:43]} 12. Nxe4 {[%emt 0:01:46]} d5 {[%emt 0:00:04]} 13. Bxg5 {[%emt 0:20:40]} dxe4 {[%emt 0:03:01]} 14. Be3 {[%emt 0:05:31]} Ng6 {[%emt 0:14:10]} 15. f4 {[%emt 0:02:17]} Kh7 {[%emt 0:08:10]} 16. f5 {[%emt 0:13:35]} Ne5 {[%emt 0:00:08]} 17. f6 {[%emt 0:01:01]} Bxf6 {[%emt 0:02:46]} 18. Qh5 {[%emt 0:02:32]} Bg5 {[%emt 0:04:44]} 19. Bxg5 {[%emt 0:01:00]} Qxg5 {[%emt 0:00:07]} 20. Qxg5 {[%emt 0:02:42]} hxg5 {[%emt 0:00:02]} 21. Bd5 {[%emt 0:00:10]} Kg7 {[%emt 0:04:21]} 22. Bxe4 {[%emt 0:02:59]} Nc4 {[%emt 0:01:03]} 23. Rf2 {[%emt 0:03:41]} Nd6 {[%emt 0:00:15]} 24. Bf5 {[%emt 0:01:21]} c5 {[%emt 0:00:23]} 25. Bxc8 {[%emt 0:01:26]} cxd4 {[%emt 0:00:54]} 26. Bf5 {[%emt 0:00:17]} dxc3 {[%emt 0:00:16]} 27. bxc3 {[%emt 0:01:37]} Rad8 {[%emt 0:00:29]} 28. Rd1 {[%emt 0:02:08]} Nb5 {[%emt 0:02:32]} 29. Rfd2 {[%emt 0:04:02]} Rxd2 {[%emt 0:01:08]} 30. Rxd2 {[%emt 0:00:03]} Kf6 {[%emt 0:02:02]} 31. Be4 {[%emt 0:01:13]} Nxc3 {[%emt 0:01:52]} 32. Bxb7 {[%emt 0:00:06]} Rb8 {[%emt 0:00:53]} 33. Rb2 {[%emt 0:02:39]} Ke5 {[%emt 0:04:38]} 34. a3 {[%emt 0:04:22]} f5 {[%emt 0:04:43]} 35. g3 {[%emt 0:02:16]} Kd4 {[%emt 0:01:49]} 36. Rd2+ {[%emt 0:02:22]} Ke3 {[%emt 0:01:07]} 37. Rd7 {[%emt 0:00:30]} a5 {[%emt 0:02:37]} 38. Rf7 {[%emt 0:01:25]} Ne2+ {[%emt 0:03:35]} 39. Kg2 {[%emt 0:00:33]} Nd4 {[%emt 0:00:16]} 40. a4 {[%emt 0:00:48]} f4 {[%emt 0:02:13]} 41. Re7+ {[%emt 0:01:38]} Kd2 {[%emt 0:00:28]} 42. h4 {[%emt 0:01:26]} gxh4 {[%emt 0:01:14]} 43. gxf4 {[%emt 0:00:14]} Rg8+ {[%emt 0:01:27]} 44. Kh2 {[%emt 0:00:45]} Rg4 {[%emt 0:01:32]} 45. Re5 {[%emt 0:00:34]} Rg7 {[%emt 0:04:44]} 46. Bg2 {[%emt 0:01:32]} 1/2-1/2